[Event "*** Titled Tuesday 3|2 Blitz"]
[Site "Chess.com"]
[Date "2015.12.01"]
[Round "1"]
[White "silverback96"]
[Black "riconaipe"]
[Result "0-1"]
[WhiteElo "1926"]
[BlackElo "2315"]
[TimeControl "180+2"]
[EndTime "11:08:07 PST"]
[Termination "riconaipe won by checkmate"]

1. d4 {[%clk 0:02:45.6]} 1... d5 {[%clk 0:03:00.1]} 2. c4 {[%clk 0:02:47.5]}
2... c6 {[%clk 0:03:00.9]} 3. Nf3 {[%clk 0:02:48.2]} 3... Nf6 {[%clk 0:03:02.4]}
4. Nc3 {[%clk 0:02:50.1]} 4... a6 {[%clk 0:03:02.1]} 5. a4 {[%clk 0:02:49.9]}
5... e6 {[%clk 0:03:02.6]} 6. g3 {[%clk 0:02:51.4]} 6... a5 {[%clk 0:03:03.5]}
7. Bg2 {[%clk 0:02:53.3]} 7... Na6 {[%clk 0:03:05]} 8. O-O {[%clk 0:02:55.2]}
8... Nb4 {[%clk 0:03:06.5]} 9. Re1 {[%clk 0:02:38.5]} 9... Be7 {[%clk
0:03:05.7]} 10. e4 {[%clk 0:02:39]} 10... dxe4 {[%clk 0:03:05.9]} 11. Nxe4
{[%clk 0:02:40.9]} 11... O-O {[%clk 0:03:06.3]} 12. h4 {[%clk 0:02:39]} 12... b6
{[%clk 0:03:00.6]} 13. Bg5 {[%clk 0:02:14]} 13... Bb7 {[%clk 0:02:59]} 14. Qb1
{[%clk 0:01:55.5]} 14... c5 {[%clk 0:02:45.1]} 15. Nxf6+ {[%clk 0:01:51.5]}
15... Bxf6 {[%clk 0:02:45.3]} 16. Bxf6 {[%clk 0:01:52.3]} 16... gxf6 {[%clk
0:02:33.1]} 17. d5 {[%clk 0:01:04.4]} 17... Re8 {[%clk 0:02:14.5]} 18. Qe4
{[%clk 0:00:43.5]} 18... f5 {[%clk 0:02:12.4]} 19. Qf4 {[%clk 0:00:37.7]} 19...
Qf6 {[%clk 0:01:49.9]} 20. d6 {[%clk 0:00:36.6]} 20... Nd3 {[%clk 0:01:43.9]}
21. Qd2 {[%clk 0:00:32.5]} 21... Nxe1 {[%clk 0:01:42.9]} 22. Rxe1 {[%clk
0:00:34.4]} 22... Rad8 {[%clk 0:01:12.8]} 23. Ne5 {[%clk 0:00:34.8]} 23... Be4
{[%clk 0:00:53]} 24. f4 {[%clk 0:00:29.7]} 24... Qg7 {[%clk 0:00:41.6]} 25. Kf2
{[%clk 0:00:27.9]} 25... Bxg2 {[%clk 0:00:37.4]} 26. Kxg2 {[%clk 0:00:29.8]}
26... f6 {[%clk 0:00:39]} 27. Nc6 {[%clk 0:00:24.5]} 27... Qb7 {[%clk
0:00:39.9]} 28. Kh2 {[%clk 0:00:20.8]} 28... Qxc6 {[%clk 0:00:40.8]} 29. Rd1
{[%clk 0:00:21.5]} 29... Rd7 {[%clk 0:00:41.1]} 30. Qc3 {[%clk 0:00:22.8]} 30...
Kf7 {[%clk 0:00:39.6]} 31. Qd2 {[%clk 0:00:21.4]} 31... Red8 {[%clk 0:00:39.9]}
32. Qe2 {[%clk 0:00:22.9]} 32... Rxd6 {[%clk 0:00:35]} 33. Qh5+ {[%clk
0:00:24.8]} 33... Kg7 {[%clk 0:00:36.6]} 34. Qe2 {[%clk 0:00:26.7]} 34... Rxd1
{[%clk 0:00:36.4]} 35. Qh5 {[%clk 0:00:28.6]} 35... R8d2+ {[%clk 0:00:35.9]} 36.
Kh3 {[%clk 0:00:30]} 36... Qg2# {[%clk 0:00:35.1]} 0-1

[Event "*** Titled Tuesday 3|2 Blitz"]
[Site "Chess.com"]
[Date "2015.12.01"]
[Round "1"]
[White "MinhGTrAn"]
[Black "StellarChessPro"]
[Result "1-0"]
[WhiteElo "2627"]
[BlackElo "2268"]
[TimeControl "180+2"]
[EndTime "11:08:08 PST"]
[Termination "MinhGTrAn won by resignation"]

1. d4 {[%clk 0:03:01.9]} 1... d5 {[%clk 0:03:00.1]} 2. c4 {[%clk 0:03:03]} 2...
c6 {[%clk 0:03:02]} 3. Nc3 {[%clk 0:03:04.3]} 3... Nf6 {[%clk 0:03:01.7]} 4.
cxd5 {[%clk 0:03:05.5]} 4... cxd5 {[%clk 0:03:02.8]} 5. Bf4 {[%clk 0:03:07]}
5... a6 {[%clk 0:03:04]} 6. e3 {[%clk 0:03:08.1]} 6... Nc6 {[%clk 0:03:05]} 7.
Bd3 {[%clk 0:03:09.4]} 7... e6 {[%clk 0:03:05.4]} 8. Rc1 {[%clk 0:03:09.7]} 8...
Bd6 {[%clk 0:03:07]} 9. Bxd6 {[%clk 0:03:10.5]} 9... Qxd6 {[%clk 0:03:08.9]} 10.
f4 {[%clk 0:03:12.4]} 10... O-O {[%clk 0:03:09.3]} 11. Nf3 {[%clk 0:03:14]}
11... Ne8 {[%clk 0:03:10.9]} 12. O-O {[%clk 0:03:15.1]} 12... f5 {[%clk
0:03:12.5]} 13. Ne5 {[%clk 0:03:16.3]} 13... Nf6 {[%clk 0:03:13.9]} 14. Na4
{[%clk 0:03:04]} 14... Ne4 {[%clk 0:03:13.2]} 15. Nc5 {[%clk 0:02:40.3]} 15...
Nxe5 {[%clk 0:03:10.8]} 16. fxe5 {[%clk 0:02:37.7]} 16... Qe7 {[%clk 0:03:10.2]}
17. Bxe4 {[%clk 0:02:38.2]} 17... fxe4 {[%clk 0:03:08.7]} 18. Rxf8+ {[%clk
0:02:35.5]} 18... Qxf8 {[%clk 0:03:09.9]} 19. Qg4 {[%clk 0:02:36.7]} 19... Qe7
{[%clk 0:03:10.2]} 20. h4 {[%clk 0:02:09]} 20... Rb8 {[%clk 0:02:48.5]} 21. Qg5
{[%clk 0:02:06.4]} 21... Qxg5 {[%clk 0:02:36.8]} 22. hxg5 {[%clk 0:02:08.3]}
22... b6 {[%clk 0:02:38.7]} 23. Nb3 {[%clk 0:01:53.5]} 23... Bd7 {[%clk
0:02:39.2]} 24. Rc7 {[%clk 0:01:50.3]} 24... Bb5 {[%clk 0:02:37.1]} 25. Nd2
{[%clk 0:01:43.3]} 25... Kf8 {[%clk 0:02:26.8]} 26. b3 {[%clk 0:01:38.2]} 26...
Be8 {[%clk 0:02:21.9]} 27. Nb1 {[%clk 0:01:26.1]} 27... Ra8 {[%clk 0:02:03.2]}
28. Kf2 {[%clk 0:01:18]} 28... b5 {[%clk 0:02:01.2]} 29. Nc3 {[%clk 0:00:50.2]}
29... b4 {[%clk 0:01:59.4]} 30. Ne2 {[%clk 0:00:50.4]} 30... Bb5 {[%clk
0:01:56.5]} 31. Nf4 {[%clk 0:00:50.8]} 31... Re8 {[%clk 0:01:54.1]} 32. Ke1
{[%clk 0:00:43.5]} 32... Re7 {[%clk 0:01:53.1]} 33. Rc5 {[%clk 0:00:41.2]} 33...
Kf7 {[%clk 0:01:52.1]} 34. Kd2 {[%clk 0:00:41.3]} 34... Rb7 {[%clk 0:01:31.3]}
35. Rc8 {[%clk 0:00:37.9]} 35... h6 {[%clk 0:01:15.4]} 36. g6+ {[%clk 0:00:36]}
36... Ke7 {[%clk 0:01:16.5]} 37. Rg8 {[%clk 0:00:35.9]} 37... Rd7 {[%clk
0:01:09.8]} 38. Rxg7+ {[%clk 0:00:36]} 38... Ke8 {[%clk 0:01:10.2]} 39. Rh7
{[%clk 0:00:30.5]} 39... Kf8 {[%clk 0:01:09.6]} 40. Nxe6+ {[%clk 0:00:29.9]}
40... Kg8 {[%clk 0:01:09.7]} 41. Nf4 {[%clk 0:00:19.8]} 41... Rxh7 {[%clk
0:01:06.7]} 42. gxh7+ {[%clk 0:00:21.7]} 42... Kxh7 {[%clk 0:01:08.6]} 43. Nxd5
{[%clk 0:00:23.3]} 43... a5 {[%clk 0:01:09.1]} 44. e6 {[%clk 0:00:22.4]} 44...
Kg7 {[%clk 0:01:09.1]} 45. Nc7 {[%clk 0:00:23.9]} 45... Bc6 {[%clk 0:01:08.4]}
46. d5 {[%clk 0:00:24.6]} 1-0

[Event "*** Titled Tuesday 3|2 Blitz"]
[Site "Chess.com"]
[Date "2015.12.01"]
[Round "1"]
[White "LADIESGET2KNOWME"]
[Black "jefferyx"]
[Result "0-1"]
[WhiteElo "2238"]
[BlackElo "2547"]
[TimeControl "180+2"]
[EndTime "11:08:58 PST"]
[Termination "jefferyx won by resignation"]

1. d4 {[%clk 0:03:01.4]} 1... b5 {[%clk 0:02:51.5]} 2. e4 {[%clk 0:03:01.9]}
2... a6 {[%clk 0:02:52.2]} 3. a4 {[%clk 0:03:01.4]} 3... b4 {[%clk 0:02:53]} 4.
Bc4 {[%clk 0:03:02]} 4... Bb7 {[%clk 0:02:54.1]} 5. Qe2 {[%clk 0:03:03.3]} 5...
e6 {[%clk 0:02:55]} 6. c3 {[%clk 0:03:01.4]} 6... Nf6 {[%clk 0:02:55.7]} 7. Nd2
{[%clk 0:03:00.7]} 7... Be7 {[%clk 0:02:54.8]} 8. Ngf3 {[%clk 0:03:01.1]} 8...
d5 {[%clk 0:02:54.2]} 9. Bd3 {[%clk 0:03:00.5]} 9... c5 {[%clk 0:02:53.8]} 10.
dxc5 {[%clk 0:02:56.6]} 10... Bxc5 {[%clk 0:02:55.7]} 11. O-O {[%clk 0:02:56.9]}
11... O-O {[%clk 0:02:41.7]} 12. e5 {[%clk 0:02:54.9]} 12... Nfd7 {[%clk
0:02:41.2]} 13. Nb3 {[%clk 0:02:56.4]} 13... Be7 {[%clk 0:02:41.4]} 14. Nbd4
{[%clk 0:02:51.1]} 14... bxc3 {[%clk 0:02:40.8]} 15. bxc3 {[%clk 0:02:51.7]}
15... Nc5 {[%clk 0:02:42.7]} 16. Bc2 {[%clk 0:02:51.6]} 16... Nbd7 {[%clk
0:02:43.1]} 17. a5 {[%clk 0:02:48.3]} 17... Ne4 {[%clk 0:02:43.1]} 18. c4 {[%clk
0:02:42.9]} 18... Ndc5 {[%clk 0:02:42.8]} 19. Be3 {[%clk 0:02:34.2]} 19... Rc8
{[%clk 0:02:43.2]} 20. cxd5 {[%clk 0:02:26]} 20... Qxd5 {[%clk 0:02:45.1]} 21.
Bxe4 {[%clk 0:02:23.4]} 21... Nxe4 {[%clk 0:02:44.1]} 22. Rfc1 {[%clk
0:02:21.3]} 22... Rfd8 {[%clk 0:02:38.2]} 23. h4 {[%clk 0:02:14.4]} 23... Rxc1+
{[%clk 0:02:17.2]} 24. Bxc1 {[%clk 0:02:11.3]} 24... Bxh4 {[%clk 0:02:12.3]} 25.
Be3 {[%clk 0:02:01.2]} 25... Be7 {[%clk 0:02:07.8]} 26. Qb2 {[%clk 0:01:56.7]}
26... g5 {[%clk 0:02:01.6]} 27. Rb1 {[%clk 0:01:56]} 27... Ba8 {[%clk
0:02:01.4]} 28. Rc1 {[%clk 0:01:49]} 28... g4 {[%clk 0:01:56.3]} 29. Ne1 {[%clk
0:01:50.3]} 29... Qxa5 {[%clk 0:01:55.1]} 30. Ra1 {[%clk 0:01:42.5]} 30... Qxe5
{[%clk 0:01:54.8]} 31. Nd3 {[%clk 0:01:43]} 31... Qg7 {[%clk 0:01:48.6]} 32.
Rxa6 {[%clk 0:01:39.4]} 32... Bd5 {[%clk 0:01:47.4]} 33. Qb6 {[%clk 0:01:35.6]}
33... Rc8 {[%clk 0:01:40.2]} 34. Ra7 {[%clk 0:01:31.1]} 34... Bg5 {[%clk
0:01:35.7]} 35. Qa6 {[%clk 0:01:16.1]} 35... Rb8 {[%clk 0:01:30.8]} 36. Nb4
{[%clk 0:01:05.3]} 36... Bxe3 {[%clk 0:01:12.1]} 37. fxe3 {[%clk 0:01:07.2]}
37... Rxb4 {[%clk 0:01:10.9]} 38. Ra8+ {[%clk 0:01:00.8]} 38... Bxa8 {[%clk
0:01:08.7]} 39. Qxa8+ {[%clk 0:01:02.7]} 39... Qf8 {[%clk 0:01:10.1]} 40. Qxe4
{[%clk 0:01:04.3]} 40... g3 {[%clk 0:01:03.2]} 41. Qd3 {[%clk 0:00:51.3]} 41...
Qb8 {[%clk 0:01:01]} 42. Kf1 {[%clk 0:00:47.6]} 42... Rb1+ {[%clk 0:00:58.1]}
43. Ke2 {[%clk 0:00:48.5]} 43... Rb2+ {[%clk 0:00:58.8]} 44. Kf3 {[%clk
0:00:48.5]} 44... Rf2+ {[%clk 0:00:57.2]} 45. Kg4 {[%clk 0:00:49.9]} 45... Rxg2
{[%clk 0:00:46.4]} 46. Nc6 {[%clk 0:00:43.6]} 46... Qf8 {[%clk 0:00:46.7]} 47.
Kf3 {[%clk 0:00:30.4]} 47... Rf2+ {[%clk 0:00:41.9]} 48. Kxg3 {[%clk 0:00:31.4]}
48... Rf5 {[%clk 0:00:35.8]} 49. Qd4 {[%clk 0:00:25.8]} 49... Qg7+ {[%clk
0:00:29.2]} 50. Qg4 {[%clk 0:00:25.5]} 50... Rg5 {[%clk 0:00:29.5]} 51. Ne7+
{[%clk 0:00:26.2]} 51... Kf8 {[%clk 0:00:30.7]} 0-1

[Event "*** Titled Tuesday 3|2 Blitz"]
[Site "Chess.com"]
[Date "2015.12.01"]
[Round "1"]
[White "Anton_Demchenko"]
[Black "BIG_Pirate"]
[Result "1-0"]
[WhiteElo "2665"]
[BlackElo "2268"]
[TimeControl "180+2"]
[EndTime "11:09:11 PST"]
[Termination "Anton_Demchenko won by resignation"]

1. e4 {[%clk 0:02:58.4]} 1... d5 {[%clk 0:03:00.4]} 2. exd5 {[%clk 0:02:59.2]}
2... Qxd5 {[%clk 0:03:02.3]} 3. Nc3 {[%clk 0:03:00.1]} 3... Qa5 {[%clk 0:03:03]}
4. g3 {[%clk 0:02:59.9]} 4... e6 {[%clk 0:02:55.1]} 5. Bg2 {[%clk 0:03:00.3]}
5... Nf6 {[%clk 0:02:51.2]} 6. Nge2 {[%clk 0:02:59.9]} 6... Be7 {[%clk 0:02:43]}
7. O-O {[%clk 0:02:58.5]} 7... O-O {[%clk 0:02:43.8]} 8. d4 {[%clk 0:02:58.9]}
8... Rd8 {[%clk 0:02:38.8]} 9. Bd2 {[%clk 0:02:57.9]} 9... Qb6 {[%clk
0:02:32.1]} 10. Qc1 {[%clk 0:02:48.3]} 10... c6 {[%clk 0:02:31.9]} 11. h3 {[%clk
0:02:41.9]} 11... Nbd7 {[%clk 0:02:30.5]} 12. Rd1 {[%clk 0:02:35.7]} 12... Nd5
{[%clk 0:02:18.6]} 13. Ne4 {[%clk 0:02:35.9]} 13... N7f6 {[%clk 0:02:18.6]} 14.
Ng5 {[%clk 0:02:32.9]} 14... h6 {[%clk 0:02:18.3]} 15. Nf3 {[%clk 0:02:33.6]}
15... Bd7 {[%clk 0:02:12.8]} 16. c4 {[%clk 0:02:33.6]} 16... Nc7 {[%clk
0:01:50.4]} 17. Nc3 {[%clk 0:02:34.1]} 17... Na6 {[%clk 0:01:45.2]} 18. Be3
{[%clk 0:02:32.3]} 18... Qc7 {[%clk 0:01:45.3]} 19. a3 {[%clk 0:02:29.6]} 19...
Be8 {[%clk 0:01:43.2]} 20. b4 {[%clk 0:02:30.1]} 20... Rac8 {[%clk 0:01:41.6]}
21. Ne5 {[%clk 0:02:25.1]} 21... Nd7 {[%clk 0:01:40.8]} 22. Nd3 {[%clk
0:02:23.6]} 22... Nf6 {[%clk 0:01:37.9]} 23. Qc2 {[%clk 0:02:21.7]} 23... Nb8
{[%clk 0:01:38.7]} 24. a4 {[%clk 0:02:13]} 24... Nbd7 {[%clk 0:01:39.6]} 25. c5
{[%clk 0:02:09.7]} 25... Nd5 {[%clk 0:01:38.2]} 26. Nxd5 {[%clk 0:02:10.1]}
26... cxd5 {[%clk 0:01:20.5]} 27. Bf4 {[%clk 0:02:10.7]} 27... Bd6 {[%clk
0:01:13.5]} 28. Be3 {[%clk 0:02:00.1]} 28... Nf6 {[%clk 0:01:11]} 29. Qe2 {[%clk
0:01:59.5]} 29... Bf8 {[%clk 0:01:09]} 30. Bf4 {[%clk 0:02:00.7]} 30... Qd7
{[%clk 0:01:10]} 31. Ne5 {[%clk 0:02:01.7]} 31... Qe7 {[%clk 0:01:08.3]} 32. b5
{[%clk 0:02:02.9]} 32... Nd7 {[%clk 0:01:07.7]} 33. Ng4 {[%clk 0:01:53.2]} 33...
f6 {[%clk 0:00:59.1]} 34. Re1 {[%clk 0:01:50.8]} 34... Bf7 {[%clk 0:00:48.3]}
35. Rac1 {[%clk 0:01:33.9]} 35... Qe8 {[%clk 0:00:38.5]} 36. Qd2 {[%clk
0:01:20]} 36... Nb8 {[%clk 0:00:30.3]} 37. Qa5 {[%clk 0:01:13.4]} 37... a6
{[%clk 0:00:30.3]} 38. Ne3 {[%clk 0:01:01.2]} 38... Qd7 {[%clk 0:00:21.9]} 39.
Bxb8 {[%clk 0:00:55.2]} 39... Rxb8 {[%clk 0:00:22.2]} 40. c6 {[%clk 0:00:56.7]}
40... b6 {[%clk 0:00:17.6]} 41. Qc3 {[%clk 0:00:34.8]} 41... Qc7 {[%clk
0:00:18.3]} 42. h4 {[%clk 0:00:36.3]} 42... h5 {[%clk 0:00:17.4]} 43. Bh3 {[%clk
0:00:36.7]} 43... Bd6 {[%clk 0:00:16.8]} 44. Kg2 {[%clk 0:00:37.5]} 44... Ra8
{[%clk 0:00:16.7]} 45. Nc2 {[%clk 0:00:38.1]} 45... axb5 {[%clk 0:00:16]} 46.
axb5 {[%clk 0:00:38.8]} 46... Ra5 {[%clk 0:00:16.8]} 47. Qb3 {[%clk 0:00:39.7]}
47... Rda8 {[%clk 0:00:16.9]} 48. Bxe6 {[%clk 0:00:39.4]} 48... Bxe6 {[%clk
0:00:16.3]} 49. Rxe6 {[%clk 0:00:41.3]} 1-0

[Event "*** Titled Tuesday 3|2 Blitz"]
[Site "Chess.com"]
[Date "2015.12.01"]
[Round "1"]
[White "PowerThinking2650"]
[Black "RitchieBlackmore"]
[Result "1/2-1/2"]
[WhiteElo "2096"]
[BlackElo "2355"]
[TimeControl "180+2"]
[EndTime "11:09:11 PST"]
[Termination "Game drawn by repetition"]

1. e4 {[%clk 0:02:56.5]} 1... e5 {[%clk 0:03:00.7]} 2. Nf3 {[%clk 0:02:56.2]}
2... d5 {[%clk 0:02:59.7]} 3. exd5 {[%clk 0:02:55.5]} 3... e4 {[%clk 0:03:01]}
4. Qe2 {[%clk 0:02:55.2]} 4... Nf6 {[%clk 0:03:02.1]} 5. d3 {[%clk 0:02:49]}
5... Qxd5 {[%clk 0:02:59.6]} 6. Nbd2 {[%clk 0:02:15.5]} 6... Be7 {[%clk
0:02:58.4]} 7. Nxe4 {[%clk 0:02:13.1]} 7... O-O {[%clk 0:02:58.5]} 8. Nc3 {[%clk
0:01:34.9]} 8... Bb4 {[%clk 0:02:50.7]} 9. Qd2 {[%clk 0:01:25.1]} 9... Re8+
{[%clk 0:02:48.3]} 10. Be2 {[%clk 0:01:25.8]} 10... Qe6 {[%clk 0:02:46]} 11. a3
{[%clk 0:01:17.7]} 11... Bxc3 {[%clk 0:02:43.1]} 12. bxc3 {[%clk 0:01:18.6]}
12... Nc6 {[%clk 0:02:40.5]} 13. Nd4 {[%clk 0:01:04.4]} 13... Nxd4 {[%clk
0:02:35.8]} 14. cxd4 {[%clk 0:01:05.4]} 14... Bd7 {[%clk 0:02:36.7]} 15. f3
{[%clk 0:00:50]} 15... Bc6 {[%clk 0:02:34.4]} 16. Kf2 {[%clk 0:00:50.2]} 16...
Rad8 {[%clk 0:02:28.4]} 17. c3 {[%clk 0:00:49.6]} 17... Qf5 {[%clk 0:02:17.7]}
18. Qf4 {[%clk 0:00:44.5]} 18... Qa5 {[%clk 0:02:18.4]} 19. Bd2 {[%clk 0:00:43]}
19... Nd5 {[%clk 0:02:14.2]} 20. Qg5 {[%clk 0:00:40.3]} 20... Qa4 {[%clk
0:02:03.9]} 21. Bd1 {[%clk 0:00:32.4]} 21... Qa6 {[%clk 0:01:58.4]} 22. c4
{[%clk 0:00:29.5]} 22... Nf6 {[%clk 0:01:55.5]} 23. d5 {[%clk 0:00:30.5]} 23...
Ba4 {[%clk 0:01:54.5]} 24. Bc3 {[%clk 0:00:29.1]} 24... h6 {[%clk 0:01:39.5]}
25. Qf4 {[%clk 0:00:25.7]} 25... Rd6 {[%clk 0:01:34]} 26. Bxa4 {[%clk
0:00:19.6]} 26... Qxa4 {[%clk 0:01:34.8]} 27. Rhe1 {[%clk 0:00:19.9]} 27... Rf8
{[%clk 0:01:16.5]} 28. Qd4 {[%clk 0:00:18.9]} 28... c5 {[%clk 0:01:03.7]} 29.
Qe5 {[%clk 0:00:17.3]} 29... Rdd8 {[%clk 0:00:50.6]} 30. Qe2 {[%clk 0:00:18.2]}
30... Nh5 {[%clk 0:00:43.1]} 31. g3 {[%clk 0:00:18]} 31... b5 {[%clk 0:00:42.2]}
32. Qe5 {[%clk 0:00:18.6]} 32... Nf6 {[%clk 0:00:42.2]} 33. Qe2 {[%clk
0:00:19.5]} 33... bxc4 {[%clk 0:00:37.9]} 34. dxc4 {[%clk 0:00:20.5]} 34... Nh5
{[%clk 0:00:38.4]} 35. Qd3 {[%clk 0:00:21.2]} 35... Rfe8 {[%clk 0:00:35.6]} 36.
Rxe8+ {[%clk 0:00:21]} 36... Rxe8 {[%clk 0:00:37.5]} 37. Re1 {[%clk 0:00:21]}
37... Rd8 {[%clk 0:00:32.1]} 38. d6 {[%clk 0:00:21.4]} 38... Qd7 {[%clk
0:00:24.5]} 39. Rd1 {[%clk 0:00:22.1]} 39... Qh3 {[%clk 0:00:24.8]} 40. Kg1
{[%clk 0:00:22.9]} 40... Nxg3 {[%clk 0:00:25.2]} 41. hxg3 {[%clk 0:00:23.9]}
41... Qxg3+ {[%clk 0:00:27.1]} 42. Kf1 {[%clk 0:00:24.7]} 42... Re8 {[%clk
0:00:26.2]} 43. d7 {[%clk 0:00:20.8]} 43... Qh3+ {[%clk 0:00:26]} 44. Kf2 {[%clk
0:00:21.3]} 44... Qh2+ {[%clk 0:00:26]} 45. Kf1 {[%clk 0:00:22.3]} 45... Qh3+
{[%clk 0:00:22]} 46. Kf2 {[%clk 0:00:23.1]} 46... Qh2+ {[%clk 0:00:23.4]} 47.
Kf1 {[%clk 0:00:23.9]} 47... Qh3+ {[%clk 0:00:24.8]} 48. Kf2 {[%clk 0:00:25.1]}
48... Qh2+ {[%clk 0:00:26.3]} 49. Kf1 {[%clk 0:00:26]} 1/2-1/2

[Event "*** Titled Tuesday 3|2 Blitz"]
[Site "Chess.com"]
[Date "2015.12.01"]
[Round "1"]
[White "SlovenskiZmaj"]
[Black "wilju"]
[Result "1-0"]
[WhiteElo "2314"]
[BlackElo "1799"]
[TimeControl "180+2"]
[EndTime "11:10:20 PST"]
[Termination "SlovenskiZmaj won on time"]

1. e4 {[%clk 0:03:01.4]} 1... e5 {[%clk 0:02:32.6]} 2. Nf3 {[%clk 0:03:01.3]}
2... Nc6 {[%clk 0:02:19.1]} 3. Bc4 {[%clk 0:03:02.1]} 3... Be7 {[%clk
0:02:15.6]} 4. c3 {[%clk 0:03:03.1]} 4... Nf6 {[%clk 0:02:14.4]} 5. d3 {[%clk
0:03:04.1]} 5... d6 {[%clk 0:02:12.7]} 6. Nbd2 {[%clk 0:03:04.8]} 6... O-O
{[%clk 0:02:12.3]} 7. O-O {[%clk 0:03:05]} 7... Na5 {[%clk 0:02:12.3]} 8. h3
{[%clk 0:03:00.4]} 8... c6 {[%clk 0:02:08.3]} 9. b4 {[%clk 0:02:56.1]} 9... Nxc4
{[%clk 0:02:07.8]} 10. Nxc4 {[%clk 0:02:58]} 10... Qc7 {[%clk 0:02:07.9]} 11.
Bg5 {[%clk 0:02:55.4]} 11... b5 {[%clk 0:02:07.5]} 12. Ne3 {[%clk 0:02:50.9]}
12... a5 {[%clk 0:02:06.9]} 13. a3 {[%clk 0:02:49.9]} 13... h6 {[%clk 0:02:06]}
14. Bxf6 {[%clk 0:02:38.1]} 14... Bxf6 {[%clk 0:02:05]} 15. d4 {[%clk
0:02:06.3]} 15... Be6 {[%clk 0:01:54.7]} 16. Qd2 {[%clk 0:01:58.1]} 16... Ra7
{[%clk 0:01:51.6]} 17. d5 {[%clk 0:00:30.5]} 17... cxd5 {[%clk 0:01:50.1]} 18.
Nxd5 {[%clk 0:00:31.1]} 18... Bxd5 {[%clk 0:01:49.1]} 19. Qxd5 {[%clk 0:00:33]}
19... Qxc3 {[%clk 0:01:22.6]} 20. Qxb5 {[%clk 0:00:29.1]} 20... axb4 {[%clk
0:01:21.2]} 21. Qxb4 {[%clk 0:00:24.4]} 21... Qxb4 {[%clk 0:01:20.6]} 22. axb4
{[%clk 0:00:26.3]} 22... Rxa1 {[%clk 0:01:20.1]} 23. Rxa1 {[%clk 0:00:28.2]}
23... d5 {[%clk 0:01:20.3]} 24. Nd2 {[%clk 0:00:25.3]} 24... d4 {[%clk 0:01:19]}
25. b5 {[%clk 0:00:23.5]} 25... Rb8 {[%clk 0:01:17.5]} 26. Rb1 {[%clk
0:00:23.4]} 26... Bd8 {[%clk 0:01:11.7]} 27. Kf1 {[%clk 0:00:24.5]} 27... f6
{[%clk 0:01:11.2]} 28. Ke2 {[%clk 0:00:25.9]} 28... Kf7 {[%clk 0:01:11.6]} 29.
Kd3 {[%clk 0:00:27.2]} 29... Bb6 {[%clk 0:01:11.1]} 30. Nc4 {[%clk 0:00:28]}
30... Ke6 {[%clk 0:01:08.9]} 31. f3 {[%clk 0:00:23.3]} 31... Kd7 {[%clk
0:01:03.4]} 32. h4 {[%clk 0:00:13.9]} 32... g6 {[%clk 0:01:01.9]} 33. g4 {[%clk
0:00:13.9]} 33... Ke6 {[%clk 0:01:00.9]} 34. h5 {[%clk 0:00:12.9]} 34... gxh5
{[%clk 0:00:57.2]} 35. gxh5 {[%clk 0:00:14.8]} 35... Bc5 {[%clk 0:00:44.2]} 36.
Nd2 {[%clk 0:00:10.4]} 36... Ra8 {[%clk 0:00:41.3]} 37. Kc4 {[%clk 0:00:10.6]}
37... Bb6 {[%clk 0:00:40.8]} 38. Kd3 {[%clk 0:00:09]} 38... Ra3+ {[%clk
0:00:39.3]} 39. Ke2 {[%clk 0:00:09.6]} 39... d3+ {[%clk 0:00:28.8]} 40. Kd1
{[%clk 0:00:10.4]} 40... Ra2 {[%clk 0:00:24.5]} 41. Nc4 {[%clk 0:00:09.4]} 41...
Rh2 {[%clk 0:00:17.3]} 42. Rb2 {[%clk 0:00:05.5]} 42... Rh1+ {[%clk 0:00:11.5]}
43. Kd2 {[%clk 0:00:06.9]} 43... Bd4 {[%clk 0:00:09.2]} 44. Rb3 {[%clk
0:00:08.3]} 44... Rxh5 {[%clk 0:00:05.2]} 45. b6 {[%clk 0:00:09.1]} 45... Rh3
{[%clk 0:00:04.4]} 46. b7 {[%clk 0:00:09.7]} 46... Ba7 {[%clk 0:00:04.2]} 47.
Rxd3 {[%clk 0:00:10.6]} 1-0